[Event "Late-Titled-Tuesday-Blitz-September-26-2023"]
[Site "Chess.com"]
[Date "2023.09.26"]
[Round "3"]
[White "artin10862"]
[Black "Druid24"]
[Result "0-1"]
[WhiteElo "2878"]
[BlackElo "2681"]
[TimeControl "180+1"]
[EndTime "14:28:01 PDT"]
[Termination "Druid24 won on time"]

1. a3 {[%clk 0:03:00.1]} 1... g6 {[%clk 0:02:57.3]} 2. c4 {[%clk 0:02:54.7]}
2... Bg7 {[%clk 0:02:57.2]} 3. g3 {[%clk 0:02:54.4]} 3... e5 {[%clk 0:02:57.1]}
4. Bg2 {[%clk 0:02:54.5]} 4... f5 {[%clk 0:02:57.4]} 5. Nc3 {[%clk 0:02:54.4]}
5... Nf6 {[%clk 0:02:57.8]} 6. d3 {[%clk 0:02:54.8]} 6... O-O {[%clk 0:02:58.3]}
7. Nf3 {[%clk 0:02:55.2]} 7... Nc6 {[%clk 0:02:58.7]} 8. O-O {[%clk 0:02:55.1]}
8... d6 {[%clk 0:02:57]} 9. Rb1 {[%clk 0:02:53.6]} 9... a5 {[%clk 0:02:55.2]}
10. b4 {[%clk 0:02:53.2]} 10... axb4 {[%clk 0:02:55.5]} 11. axb4 {[%clk
0:02:54.1]} 11... f4 {[%clk 0:02:41]} 12. b5 {[%clk 0:02:46.5]} 12... Ne7 {[%clk
0:02:35.2]} 13. gxf4 {[%clk 0:02:39.6]} 13... exf4 {[%clk 0:02:34.6]} 14. Bxf4
{[%clk 0:02:36.9]} 14... Nh5 {[%clk 0:02:35.1]} 15. Bd2 {[%clk 0:02:35.5]} 15...
Nf4 {[%clk 0:02:34.6]} 16. Bxf4 {[%clk 0:02:25.7]} 16... Rxf4 {[%clk 0:02:35.5]}
17. Ne4 {[%clk 0:02:26]} 17... Ra2 {[%clk 0:02:20.8]} 18. Nfd2 {[%clk
0:02:06.1]} 18... Bg4 {[%clk 0:02:06.1]} 19. Qb3 {[%clk 0:01:58.3]} 19... Qa8
{[%clk 0:02:01.6]} 20. e3 {[%clk 0:01:47.5]} 20... Rf8 {[%clk 0:02:00.3]} 21. h3
{[%clk 0:01:13.5]} 21... Be2 {[%clk 0:01:54.8]} 22. Rfe1 {[%clk 0:01:12]} 22...
Ra3 {[%clk 0:01:54.6]} 23. Rxe2 {[%clk 0:01:01.8]} 23... Rxb3 {[%clk 0:01:54.3]}
24. Nxb3 {[%clk 0:01:00.5]} 24... Qa3 {[%clk 0:01:53.1]} 25. Ng5 {[%clk
0:00:58.6]} 25... c6 {[%clk 0:01:39.1]} 26. Ne6 {[%clk 0:00:48.6]} 26... Rf5
{[%clk 0:01:39]} 27. Nxg7 {[%clk 0:00:39.9]} 27... Kxg7 {[%clk 0:01:39.9]} 28.
bxc6 {[%clk 0:00:39.7]} 28... bxc6 {[%clk 0:01:38.3]} 29. Nd4 {[%clk 0:00:39]}
29... Rf6 {[%clk 0:01:29.4]} 30. Rd2 {[%clk 0:00:09.1]} 30... Qc3 {[%clk
0:01:24.4]} 31. Rbd1 {[%clk 0:00:06.3]} 31... d5 {[%clk 0:01:21]} 32. cxd5
{[%clk 0:00:05.9]} 32... Nxd5 {[%clk 0:01:21.9]} 33. Rc2 {[%clk 0:00:05.7]}
33... Qa3 {[%clk 0:01:17.8]} 34. Nxc6 {[%clk 0:00:03.5]} 34... Nb4 {[%clk
0:01:15]} 35. Nxb4 {[%clk 0:00:03.2]} 35... Qxb4 {[%clk 0:01:15.9]} 36. d4
{[%clk 0:00:03.6]} 36... Qb5 {[%clk 0:01:01.7]} 37. Rc5 {[%clk 0:00:02.7]} 37...
Qe2 {[%clk 0:00:53.3]} 38. Rf1 {[%clk 0:00:03.1]} 38... Rf5 {[%clk 0:00:50.7]}
39. Rc7+ {[%clk 0:00:02.6]} 39... Kh6 {[%clk 0:00:50.1]} 40. Kh2 {[%clk
0:00:02.1]} 40... Rxf2 {[%clk 0:00:43.6]} 41. Rxf2 {[%clk 0:00:03]} 41... Qxf2
{[%clk 0:00:44.5]} 42. Re7 {[%clk 0:00:03.2]} 42... g5 {[%clk 0:00:44.3]} 43.
Re5 {[%clk 0:00:02.8]} 43... Kg6 {[%clk 0:00:35.9]} 44. Re6+ {[%clk 0:00:02.8]}
44... Kf7 {[%clk 0:00:33.3]} 45. Re5 {[%clk 0:00:03.7]} 45... Kf6 {[%clk
0:00:30.5]} 46. Kh1 {[%clk 0:00:02.8]} 46... h5 {[%clk 0:00:28.3]} 47. Bd5
{[%clk 0:00:01.2]} 47... g4 {[%clk 0:00:25.9]} 48. hxg4 {[%clk 0:00:01.6]} 48...
hxg4 {[%clk 0:00:25.8]} 49. Bg2 {[%clk 0:00:01.9]} 49... g3 {[%clk 0:00:23.2]}
50. e4 {[%clk 0:00:02.3]} 50... Qe1+ {[%clk 0:00:23.1]} 0-1

[Event "Late-Titled-Tuesday-Blitz-September-26-2023"]
[Site "Chess.com"]
[Date "2023.09.26"]
[Round "3"]
[White "MagnusCarlsen"]
[Black "IlanSchnaider"]
[Result "1-0"]
[WhiteElo "3281"]
[BlackElo "2807"]
[TimeControl "180+1"]
[EndTime "14:28:05 PDT"]
[Termination "MagnusCarlsen won by resignation"]

1. e4 {[%clk 0:02:55.9]} 1... c5 {[%clk 0:02:58.7]} 2. Nf3 {[%clk 0:02:52.1]}
2... d6 {[%clk 0:02:58.7]} 3. c3 {[%clk 0:02:49.8]} 3... Nf6 {[%clk 0:02:53.2]}
4. h3 {[%clk 0:02:38.7]} 4... g6 {[%clk 0:02:51.9]} 5. Bb5+ {[%clk 0:02:36.2]}
5... Bd7 {[%clk 0:02:49.1]} 6. Bxd7+ {[%clk 0:02:35.7]} 6... Qxd7 {[%clk
0:02:49.5]} 7. Qe2 {[%clk 0:02:35.4]} 7... Bg7 {[%clk 0:02:48.9]} 8. O-O {[%clk
0:02:30.5]} 8... O-O {[%clk 0:02:48.8]} 9. d4 {[%clk 0:02:31.3]} 9... cxd4
{[%clk 0:02:46.2]} 10. cxd4 {[%clk 0:02:32.2]} 10... Nc6 {[%clk 0:02:31.3]} 11.
Nc3 {[%clk 0:02:28.2]} 11... e5 {[%clk 0:02:21.4]} 12. dxe5 {[%clk 0:02:26.7]}
12... dxe5 {[%clk 0:02:08.5]} 13. Rd1 {[%clk 0:02:23.8]} 13... Qe6 {[%clk
0:01:50.9]} 14. Be3 {[%clk 0:02:22.7]} 14... Rfd8 {[%clk 0:01:48.4]} 15. Qb5
{[%clk 0:02:21.5]} 15... b6 {[%clk 0:00:54.9]} 16. Nd5 {[%clk 0:02:20.6]} 16...
Rac8 {[%clk 0:00:49.2]} 17. Rac1 {[%clk 0:02:12.9]} 17... Nxe4 {[%clk
0:00:24.9]} 18. Qa6 {[%clk 0:02:00.5]} 18... Bf8 {[%clk 0:00:15.4]} 19. Ng5
{[%clk 0:01:46.7]} 19... Nxg5 {[%clk 0:00:14.1]} 20. Bxg5 {[%clk 0:01:47.6]}
20... Rd6 {[%clk 0:00:08.2]} 21. b4 {[%clk 0:01:27.1]} 21... h6 {[%clk 0:00:08]}
22. Nf6+ {[%clk 0:00:39.4]} 22... Kg7 {[%clk 0:00:05.6]} 23. Rxd6 {[%clk
0:00:36.8]} 23... Bxd6 {[%clk 0:00:06.2]} 24. Ne4 {[%clk 0:00:36.1]} 24... hxg5
{[%clk 0:00:05.2]} 25. Nxd6 {[%clk 0:00:35.4]} 25... Rd8 {[%clk 0:00:05.2]} 26.
Ne4 {[%clk 0:00:28.4]} 26... Nxb4 {[%clk 0:00:05.2]} 27. Qxa7 {[%clk 0:00:28.3]}
27... Qf5 {[%clk 0:00:04.8]} 28. Qxb6 {[%clk 0:00:19.7]} 28... Rd4 {[%clk
0:00:02.5]} 29. f3 {[%clk 0:00:20]} 29... Nd3 {[%clk 0:00:02.5]} 30. Rd1 {[%clk
0:00:19.8]} 30... Qf4 {[%clk 0:00:02.7]} 31. Kh1 {[%clk 0:00:15.5]} 31... Qe3
{[%clk 0:00:02.8]} 32. Qf6+ {[%clk 0:00:14.5]} 32... Kg8 {[%clk 0:00:02.8]} 33.
Kh2 {[%clk 0:00:14.6]} 33... Qf4+ {[%clk 0:00:02.9]} 34. Qxf4 {[%clk 0:00:14.4]}
34... gxf4 {[%clk 0:00:03.5]} 35. a4 {[%clk 0:00:14.4]} 35... Nb4 {[%clk
0:00:02.1]} 36. Rxd4 {[%clk 0:00:13.7]} 36... exd4 {[%clk 0:00:03]} 37. a5
{[%clk 0:00:14.2]} 37... d3 {[%clk 0:00:03.2]} 38. Kg1 {[%clk 0:00:14.2]} 38...
Kf8 {[%clk 0:00:03.4]} 39. Kf2 {[%clk 0:00:13.2]} 39... f5 {[%clk 0:00:03.4]}
40. Nc5 {[%clk 0:00:12.3]} 40... Ke7 {[%clk 0:00:03.6]} 41. a6 {[%clk
0:00:12.7]} 41... Nc6 {[%clk 0:00:03.9]} 42. Nxd3 {[%clk 0:00:12.2]} 42... g5
{[%clk 0:00:03.4]} 43. g3 {[%clk 0:00:11.3]} 43... fxg3+ {[%clk 0:00:03.2]} 44.
Kxg3 {[%clk 0:00:12.2]} 44... Kd6 {[%clk 0:00:03]} 45. f4 {[%clk 0:00:12.3]}
45... gxf4+ {[%clk 0:00:01.9]} 46. Kxf4 {[%clk 0:00:13.2]} 46... Kc7 {[%clk
0:00:01.6]} 47. h4 {[%clk 0:00:12.6]} 47... Kb6 {[%clk 0:00:01.5]} 48. h5 {[%clk
0:00:13]} 48... Ne7 {[%clk 0:00:02.1]} 49. h6 {[%clk 0:00:13.1]} 49... Kxa6
{[%clk 0:00:02.4]} 50. h7 {[%clk 0:00:13.1]} 50... Kb6 {[%clk 0:00:02.8]} 51.
Ne5 {[%clk 0:00:13.3]} 51... Nd5+ {[%clk 0:00:01.9]} 52. Kxf5 {[%clk 0:00:12.6]}
52... Ne7+ {[%clk 0:00:02.7]} 53. Ke6 {[%clk 0:00:13]} 1-0

[Event "Late-Titled-Tuesday-Blitz-September-26-2023"]
[Site "Chess.com"]
[Date "2023.09.26"]
[Round "3"]
[White "bazar-wokzal"]
[Black "sergiochess83"]
[Result "1-0"]
[WhiteElo "2683"]
[BlackElo "2880"]
[TimeControl "180+1"]
[EndTime "14:28:07 PDT"]
[Termination "bazar-wokzal won by checkmate"]

1. e4 {[%clk 0:03:00.9]} 1... c6 {[%clk 0:02:53.4]} 2. d4 {[%clk 0:02:59.4]}
2... d5 {[%clk 0:02:54.3]} 3. f3 {[%clk 0:02:59.4]} 3... e6 {[%clk 0:02:44.2]}
4. Nc3 {[%clk 0:02:58.4]} 4... Bb4 {[%clk 0:02:43.6]} 5. Be3 {[%clk 0:02:58.1]}
5... Ne7 {[%clk 0:02:43.1]} 6. Bd3 {[%clk 0:02:56.2]} 6... Nd7 {[%clk
0:02:26.2]} 7. Ne2 {[%clk 0:02:55.7]} 7... dxe4 {[%clk 0:02:19.1]} 8. fxe4
{[%clk 0:02:54.1]} 8... e5 {[%clk 0:02:19.7]} 9. O-O {[%clk 0:02:49]} 9... exd4
{[%clk 0:02:17.8]} 10. Bxd4 {[%clk 0:02:47.8]} 10... O-O {[%clk 0:02:18]} 11.
Kh1 {[%clk 0:02:46.2]} 11... Bc5 {[%clk 0:02:16.3]} 12. Qd2 {[%clk 0:02:39.1]}
12... Bxd4 {[%clk 0:02:14.3]} 13. Nxd4 {[%clk 0:02:39.4]} 13... Ne5 {[%clk
0:02:15]} 14. Nf5 {[%clk 0:02:33.4]} 14... N7g6 {[%clk 0:02:01.6]} 15. Ne2
{[%clk 0:02:27.8]} 15... Be6 {[%clk 0:01:57.2]} 16. Rad1 {[%clk 0:02:20.4]}
16... Qb6 {[%clk 0:01:46.1]} 17. b3 {[%clk 0:02:16.2]} 17... Rad8 {[%clk
0:01:45.4]} 18. Nf4 {[%clk 0:02:13.6]} 18... Bxf5 {[%clk 0:01:33.3]} 19. exf5
{[%clk 0:02:10.4]} 19... Nxf4 {[%clk 0:01:33.3]} 20. Qxf4 {[%clk 0:02:09.9]}
20... Nxd3 {[%clk 0:01:30]} 21. Rxd3 {[%clk 0:02:00.4]} 21... Rxd3 {[%clk
0:01:29.2]} 22. cxd3 {[%clk 0:02:00.5]} 22... f6 {[%clk 0:01:26.5]} 23. Qc4+
{[%clk 0:01:53.4]} 23... Kh8 {[%clk 0:01:25.8]} 24. Re1 {[%clk 0:01:38.2]} 24...
Qf2 {[%clk 0:01:23.7]} 25. Qe6 {[%clk 0:01:35.5]} 25... h6 {[%clk 0:01:21.3]}
26. a4 {[%clk 0:01:30.5]} 26... a5 {[%clk 0:01:19.2]} 27. h3 {[%clk 0:01:29.8]}
27... Kh7 {[%clk 0:01:09.6]} 28. Re3 {[%clk 0:01:20.8]} 28... Qf1+ {[%clk
0:01:02.6]} 29. Kh2 {[%clk 0:01:20.5]} 29... Qf4+ {[%clk 0:01:03.5]} 30. Kg1
{[%clk 0:01:16.2]} 30... Rd8 {[%clk 0:01:00.8]} 31. Rf3 {[%clk 0:01:07.3]} 31...
Qb8 {[%clk 0:00:43.1]} 32. Qf7 {[%clk 0:00:56.2]} 32... Re8 {[%clk 0:00:23.9]}
33. Kf2 {[%clk 0:00:44.5]} 33... Qe5 {[%clk 0:00:21.6]} 34. Kg1 {[%clk
0:00:35.7]} 34... Re7 {[%clk 0:00:21.1]} 35. Qg6+ {[%clk 0:00:33.4]} 35... Kh8
{[%clk 0:00:20.5]} 36. Qg4 {[%clk 0:00:30.6]} 36... Qd5 {[%clk 0:00:16.9]} 37.
Qc4 {[%clk 0:00:20.7]} 37... Re5 {[%clk 0:00:15.8]} 38. Qxd5 {[%clk 0:00:18.3]}
38... Rxd5 {[%clk 0:00:16.7]} 39. g4 {[%clk 0:00:18.6]} 39... Rc5 {[%clk
0:00:14.2]} 40. Re3 {[%clk 0:00:18.4]} 40... Rc3 {[%clk 0:00:12.9]} 41. Kf2
{[%clk 0:00:14]} 41... Rxb3 {[%clk 0:00:13]} 42. Re8+ {[%clk 0:00:14]} 42... Kh7
{[%clk 0:00:12.9]} 43. Ke3 {[%clk 0:00:14.7]} 43... Rb4 {[%clk 0:00:11.3]} 44.
Rb8 {[%clk 0:00:06.7]} 44... h5 {[%clk 0:00:08.1]} 45. d4 {[%clk 0:00:05.9]}
45... hxg4 {[%clk 0:00:07.6]} 46. hxg4 {[%clk 0:00:06.8]} 46... Kh6 {[%clk
0:00:05.6]} 47. Kf3 {[%clk 0:00:04.7]} 47... Kg5 {[%clk 0:00:04.7]} 48. Rg8
{[%clk 0:00:03.3]} 48... Kh6 {[%clk 0:00:01.9]} 49. Rh8+ {[%clk 0:00:02.9]}
49... Kg5 {[%clk 0:00:02.3]} 50. Rh5# {[%clk 0:00:03.8]} 1-0

[Event "Late-Titled-Tuesday-Blitz-September-26-2023"]
[Site "Chess.com"]
[Date "2023.09.26"]
[Round "3"]
[White "MeisterJabo"]
[Black "AleksanderHnydiuk"]
[Result "1/2-1/2"]
[WhiteElo "2325"]
[BlackElo "2543"]
[TimeControl "180+1"]
[EndTime "14:28:11 PDT"]
[Termination "Game drawn by repetition"]

1. e4 {[%clk 0:02:57]} 1... c5 {[%clk 0:02:56.2]} 2. Nf3 {[%clk 0:02:55.4]} 2...
e6 {[%clk 0:02:56.5]} 3. d4 {[%clk 0:02:51.7]} 3... cxd4 {[%clk 0:02:57.4]} 4.
Nxd4 {[%clk 0:02:52.4]} 4... Nc6 {[%clk 0:02:57.5]} 5. Nc3 {[%clk 0:02:50.1]}
5... a6 {[%clk 0:02:57.2]} 6. Be3 {[%clk 0:02:47.1]} 6... Nf6 {[%clk 0:02:56.1]}
7. Be2 {[%clk 0:02:43.4]} 7... d6 {[%clk 0:02:53.1]} 8. O-O {[%clk 0:02:39.8]}
8... Bd7 {[%clk 0:02:53.2]} 9. f4 {[%clk 0:02:38.4]} 9... Be7 {[%clk 0:02:53.1]}
10. Kh1 {[%clk 0:02:30]} 10... b5 {[%clk 0:02:52.9]} 11. a3 {[%clk 0:02:29.5]}
11... O-O {[%clk 0:02:51.8]} 12. g4 {[%clk 0:02:29.1]} 12... Nxd4 {[%clk
0:02:22]} 13. Bxd4 {[%clk 0:02:25.9]} 13... Bc6 {[%clk 0:02:18.5]} 14. Bf3
{[%clk 0:02:24.1]} 14... Nd7 {[%clk 0:02:08.5]} 15. e5 {[%clk 0:02:19.8]} 15...
Qc7 {[%clk 0:01:54.1]} 16. Bxc6 {[%clk 0:01:21.5]} 16... Qxc6+ {[%clk
0:01:53.4]} 17. Qf3 {[%clk 0:01:22.4]} 17... Qxf3+ {[%clk 0:01:50.1]} 18. Rxf3
{[%clk 0:01:23.3]} 18... Rac8 {[%clk 0:01:21.1]} 19. Rd1 {[%clk 0:01:11.3]}
19... dxe5 {[%clk 0:01:15.3]} 20. Bxe5 {[%clk 0:01:11.7]} 20... Nxe5 {[%clk
0:01:13.4]} 21. fxe5 {[%clk 0:01:12.6]} 21... Rfd8 {[%clk 0:01:09.8]} 22. Rfd3
{[%clk 0:01:12]} 22... Rxd3 {[%clk 0:01:03]} 23. Rxd3 {[%clk 0:01:12.9]} 23...
Rd8 {[%clk 0:01:03]} 24. Kg2 {[%clk 0:01:10]} 24... Rxd3 {[%clk 0:00:58.5]} 25.
cxd3 {[%clk 0:01:10.9]} 25... Bc5 {[%clk 0:00:57.4]} 26. Kf3 {[%clk 0:01:08.7]}
26... Kf8 {[%clk 0:00:47]} 27. Ke4 {[%clk 0:01:08.5]} 27... Ke7 {[%clk
0:00:47.1]} 28. d4 {[%clk 0:01:07.5]} 28... Ba7 {[%clk 0:00:47.1]} 29. a4 {[%clk
0:01:01.6]} 29... bxa4 {[%clk 0:00:41.7]} 30. Nxa4 {[%clk 0:01:01.4]} 30... Kd7
{[%clk 0:00:42]} 31. d5 {[%clk 0:00:50.1]} 31... exd5+ {[%clk 0:00:39.8]} 32.
Kxd5 {[%clk 0:00:51]} 32... Bf2 {[%clk 0:00:33.9]} 33. Nc5+ {[%clk 0:00:39.2]}
33... Bxc5 {[%clk 0:00:11.2]} 34. Kxc5 {[%clk 0:00:39.8]} 34... h5 {[%clk
0:00:05.6]} 35. h3 {[%clk 0:00:11.9]} 35... Ke6 {[%clk 0:00:02.3]} 36. Kb6
{[%clk 0:00:11.4]} 36... Kxe5 {[%clk 0:00:02.1]} 37. Kxa6 {[%clk 0:00:11.5]}
37... hxg4 {[%clk 0:00:01.5]} 38. hxg4 {[%clk 0:00:12.4]} 38... Kf4 {[%clk
0:00:01.7]} 39. b4 {[%clk 0:00:12.7]} 39... Kxg4 {[%clk 0:00:02.2]} 40. b5
{[%clk 0:00:13.5]} 40... f5 {[%clk 0:00:02.5]} 41. b6 {[%clk 0:00:14.4]} 41...
f4 {[%clk 0:00:03]} 42. b7 {[%clk 0:00:15.3]} 42... f3 {[%clk 0:00:03.5]} 43.
b8=Q {[%clk 0:00:16.2]} 43... f2 {[%clk 0:00:03.9]} 44. Qb1 {[%clk 0:00:14.6]}
44... Kg3 {[%clk 0:00:03.8]} 45. Qf1 {[%clk 0:00:13.8]} 45... g5 {[%clk
0:00:04.1]} 46. Kb5 {[%clk 0:00:14.4]} 46... g4 {[%clk 0:00:04.6]} 47. Kc4
{[%clk 0:00:14.8]} 47... Kf3 {[%clk 0:00:05.1]} 48. Kd3 {[%clk 0:00:13.1]} 48...
g3 {[%clk 0:00:05.5]} 49. Qe2+ {[%clk 0:00:09.3]} 49... Kg2 {[%clk 0:00:05.9]}
50. Qe4+ {[%clk 0:00:09]} 50... Kg1 {[%clk 0:00:05.9]} 51. Qe3 {[%clk
0:00:02.1]} 51... Kg2 {[%clk 0:00:05.9]} 52. Qe4+ {[%clk 0:00:02.2]} 52... Kg1
{[%clk 0:00:06.3]} 53. Qe3 {[%clk 0:00:02.9]} 53... Kg2 {[%clk 0:00:06.7]} 54.
Qe2 {[%clk 0:00:02.5]} 54... Kg1 {[%clk 0:00:06.9]} 55. Qe3 {[%clk 0:00:01.3]}
1/2-1/2

[Event "Late-Titled-Tuesday-Blitz-September-26-2023"]
[Site "Chess.com"]
[Date "2023.09.26"]
[Round "3"]
[White "Shuvalov"]
[Black "AradNazari"]
[Result "0-1"]
[WhiteElo "2484"]
[BlackElo "2776"]
[TimeControl "180+1"]
[EndTime "14:28:14 PDT"]
[Termination "AradNazari won by resignation"]

1. d4 {[%clk 0:03:00.9]} 1... Nf6 {[%clk 0:02:58.7]} 2. c4 {[%clk 0:03:00.9]}
2... g6 {[%clk 0:02:59.1]} 3. Nc3 {[%clk 0:03:01]} 3... d5 {[%clk 0:02:59.7]} 4.
cxd5 {[%clk 0:03:00.7]} 4... Nxd5 {[%clk 0:03:00.2]} 5. e4 {[%clk 0:03:01.3]}
5... Nxc3 {[%clk 0:03:00.8]} 6. bxc3 {[%clk 0:03:02.1]} 6... Bg7 {[%clk
0:03:01.6]} 7. Nf3 {[%clk 0:03:02]} 7... O-O {[%clk 0:03:01.2]} 8. Be3 {[%clk
0:03:00.7]} 8... c5 {[%clk 0:02:59.3]} 9. Rc1 {[%clk 0:03:00.1]} 9... Qa5 {[%clk
0:02:56]} 10. Qd2 {[%clk 0:02:55.6]} 10... Rd8 {[%clk 0:02:52.1]} 11. d5 {[%clk
0:02:53.7]} 11... e6 {[%clk 0:02:48.1]} 12. c4 {[%clk 0:02:52.9]} 12... Qxd2+
{[%clk 0:02:24.1]} 13. Nxd2 {[%clk 0:02:53.8]} 13... b6 {[%clk 0:02:20.4]} 14.
h3 {[%clk 0:02:51.2]} 14... Na6 {[%clk 0:02:19.9]} 15. Bd3 {[%clk 0:02:35.7]}
15... Bb2 {[%clk 0:01:56.1]} 16. Rd1 {[%clk 0:02:28.4]} 16... Nb4 {[%clk
0:01:42.6]} 17. Bb1 {[%clk 0:02:27.9]} 17... exd5 {[%clk 0:01:39.4]} 18. exd5
{[%clk 0:02:22.7]} 18... Re8 {[%clk 0:01:23.5]} 19. O-O {[%clk 0:02:19.9]} 19...
Ba6 {[%clk 0:01:21.5]} 20. Rfe1 {[%clk 0:02:11.1]} 20... f5 {[%clk 0:01:10]} 21.
g4 {[%clk 0:01:51.2]} 21... fxg4 {[%clk 0:00:54.2]} 22. hxg4 {[%clk 0:01:52.1]}
22... Kf7 {[%clk 0:00:42.7]} 23. Kg2 {[%clk 0:01:51.1]} 23... Re7 {[%clk
0:00:38.9]} 24. f4 {[%clk 0:01:41.1]} 24... Rae8 {[%clk 0:00:38.9]} 25. Bf2
{[%clk 0:01:40.9]} 25... Bc8 {[%clk 0:00:26.1]} 26. Kf3 {[%clk 0:01:37.4]} 26...
Rxe1 {[%clk 0:00:26]} 27. Rxe1 {[%clk 0:01:36.9]} 27... Rxe1 {[%clk 0:00:26.4]}
28. Bxe1 {[%clk 0:01:37.8]} 28... Bc3 {[%clk 0:00:27]} 29. a3 {[%clk 0:01:31.7]}
29... Na6 {[%clk 0:00:27]} 30. f5 {[%clk 0:01:28.1]} 30... gxf5 {[%clk
0:00:25.8]} 31. Bxf5 {[%clk 0:01:26.6]} 31... Bxf5 {[%clk 0:00:24.6]} 32. gxf5
{[%clk 0:01:27.5]} 32... Nc7 {[%clk 0:00:24.4]} 33. Ke2 {[%clk 0:01:22.3]} 33...
Bxd2 {[%clk 0:00:24.6]} 34. Bxd2 {[%clk 0:01:21.9]} 34... Kf6 {[%clk 0:00:25.1]}
35. Bf4 {[%clk 0:01:18.5]} 35... Na6 {[%clk 0:00:20.7]} 36. d6 {[%clk
0:01:10.1]} 36... Nb8 {[%clk 0:00:20.1]} 37. Kf3 {[%clk 0:01:07.9]} 37... Kxf5
{[%clk 0:00:20]} 38. Bh2 {[%clk 0:01:07.7]} 38... Nd7 {[%clk 0:00:20.4]} 39. Ke3
{[%clk 0:01:06.8]} 39... h5 {[%clk 0:00:20]} 40. Kf3 {[%clk 0:01:06.9]} 40... h4
{[%clk 0:00:20.4]} 41. a4 {[%clk 0:01:06.3]} 41... Nf6 {[%clk 0:00:14.6]} 42.
Bf4 {[%clk 0:00:51.5]} 42... Ke6 {[%clk 0:00:14.5]} 43. Bg5 {[%clk 0:00:49.6]}
43... h3 {[%clk 0:00:10]} 44. Bf4 {[%clk 0:00:47.8]} 44... Ne8 {[%clk
0:00:09.7]} 45. Kg3 {[%clk 0:00:47.2]} 45... Nxd6 {[%clk 0:00:10.2]} 46. Kxh3
{[%clk 0:00:47]} 46... Nxc4 {[%clk 0:00:10.6]} 47. Bb8 {[%clk 0:00:47]} 47... a6
{[%clk 0:00:10.1]} 48. Kg3 {[%clk 0:00:46.4]} 48... Kd5 {[%clk 0:00:10.7]} 49.
Kf3 {[%clk 0:00:46.5]} 49... Nb2 {[%clk 0:00:11.3]} 50. a5 {[%clk 0:00:45]}
50... b5 {[%clk 0:00:11.8]} 51. Ke2 {[%clk 0:00:44.9]} 51... Nc4 {[%clk
0:00:12.1]} 52. Bc7 {[%clk 0:00:44.4]} 52... Kc6 {[%clk 0:00:12.7]} 53. Bd8
{[%clk 0:00:44.1]} 53... b4 {[%clk 0:00:13.3]} 54. Kd3 {[%clk 0:00:43.5]} 54...
Kb5 {[%clk 0:00:14]} 55. Kc2 {[%clk 0:00:40.5]} 55... Nxa5 {[%clk 0:00:14.3]}
56. Bf6 {[%clk 0:00:39.3]} 56... Nc6 {[%clk 0:00:14.7]} 57. Kb3 {[%clk
0:00:39.2]} 57... a5 {[%clk 0:00:15.4]} 58. Ka2 {[%clk 0:00:39.1]} 58... c4
{[%clk 0:00:16]} 59. Bg7 {[%clk 0:00:38.6]} 59... a4 {[%clk 0:00:16.6]} 60. Kb2
{[%clk 0:00:38.8]} 60... a3+ {[%clk 0:00:17]} 61. Ka2 {[%clk 0:00:39.1]} 61...
Ka4 {[%clk 0:00:17.7]} 62. Ka1 {[%clk 0:00:36]} 62... b3 {[%clk 0:00:17.5]} 63.
Kb1 {[%clk 0:00:36.1]} 63... Nb4 {[%clk 0:00:18.1]} 64. Bc3 {[%clk 0:00:32.8]}
64... Nd5 {[%clk 0:00:18.2]} 65. Bd4 {[%clk 0:00:32.6]} 65... c3 {[%clk
0:00:18.7]} 66. Ka1 {[%clk 0:00:32.6]} 66... c2 {[%clk 0:00:17.7]} 67. Bb2
{[%clk 0:00:31.1]} 67... axb2+ {[%clk 0:00:17.2]} 68. Kxb2 {[%clk 0:00:32]}
68... Nf4 {[%clk 0:00:17.5]} 0-1